[Event "Titled Tuesday Blitz February 21 Early 2023"]
[White "Zhukova, Natalia"]
[Black "Deev, Andrei"]
[WhiteFideId "14101513"]
[BlackFideId "4102690"]
[WhiteElo "2324"]
[BlackElo "2390"]
[Result "1-0"]
[Round "06"]
[TimeControl "180+2"]
[Date "2023.02.21"]
[WhiteClock "0:00:04"]
[BlackClock "0:00:04"]

1. c4 {[%clk 0:03:00]}  d6 {[%clk 0:03:00]} 2. Nc3 {[%clk 0:03:00]}  e5 {[%clk 0:03:00]} 3. Nf3 {[%clk 0:03:00]}  f5 {[%clk 0:02:59]} 4. g3 {[%clk 0:02:59]}  Nf6 {[%clk 0:02:59]} 5. d4 {[%clk 0:02:59]}  e4 {[%clk 0:02:58]} 6. Ng5 {[%clk 0:02:59]}  Be7 {[%clk 0:02:54]} 7. Bg2 {[%clk 0:02:59]}  O-O {[%clk 0:02:53]} 8. O-O {[%clk 0:02:59]}  Ng4 {[%clk 0:02:33]} 9. Nh3 {[%clk 0:02:53]}  Nc6 {[%clk 0:02:25]} 10. Nd5 {[%clk 0:02:25]}  Bf6 {[%clk 0:02:02]} 11. Nxf6+ {[%clk 0:01:46]}  Qxf6 {[%clk 0:01:59]} 12. f3 {[%clk 0:01:46]}  exf3 {[%clk 0:01:49]} 13. exf3 {[%clk 0:01:46]}  Nh6 {[%clk 0:01:43]} 14. Be3 {[%clk 0:01:43]}  f4 {[%clk 0:01:38]} 15. Nxf4 {[%clk 0:01:21]}  Nf5 {[%clk 0:01:37]} 16. Nd5 {[%clk 0:01:21]}  Qf7 {[%clk 0:01:30]} 17. Bf2 {[%clk 0:01:21]}  Be6 {[%clk 0:01:06]} 18. Nxc7 {[%clk 0:01:21]}  Bxc4 {[%clk 0:00:56]} 19. Nxa8 {[%clk 0:01:20]}  Bxf1 {[%clk 0:00:55]} 20. Bxf1 {[%clk 0:01:06]}  Rxa8 {[%clk 0:00:48]} 21. Rc1 {[%clk 0:01:01]}  Kh8 {[%clk 0:00:46]} 22. Bc4 {[%clk 0:00:45]}  Qf6 {[%clk 0:00:46]} 23. Bd5 {[%clk 0:00:40]}  Nfxd4 {[%clk 0:00:32]} 24. Bxd4 {[%clk 0:00:21]}  Nxd4 {[%clk 0:00:29]} 25. Bxb7 {[%clk 0:00:19]}  Rb8 {[%clk 0:00:29]} 26. b3 {[%clk 0:00:14]}  h5 {[%clk 0:00:26]} 27. Be4 {[%clk 0:00:14]}  Rf8 {[%clk 0:00:17]} 28. f4 {[%clk 0:00:14]}  g6 {[%clk 0:00:16]} 29. Rc4 {[%clk 0:00:12]}  Nf5 {[%clk 0:00:14]} 30. Bxf5 {[%clk 0:00:10]}  Qxf5 {[%clk 0:00:12]} 31. Qxd6 {[%clk 0:00:09]}  Qb1+ {[%clk 0:00:11]} 32. Kg2 {[%clk 0:00:09]}  Qf5 {[%clk 0:00:05]} 33. Qd4+ {[%clk 0:00:04]}  Kg8 {[%clk 0:00:04]} 34. Rc7 {[%clk 0:00:04]}  Rf7 {[%clk 0:00:04]} 35. Qc4 {[%clk 0:00:04]} 1-0


[Site "https://www.chess.com"]

[Event "Titled Tuesday Blitz February 21 Early 2023"]
[White "Gharamian, Tigran"]
[Black "Sanchez, Robert"]
[WhiteFideId "13301527"]
[BlackFideId "2034360"]
[WhiteElo "2601"]
[BlackElo "1966"]
[Result "1-0"]
[Round "06"]
[TimeControl "180+2"]
[Date "2023.02.21"]
[WhiteClock "0:00:04"]
[BlackClock "0:00:13"]

1. d4 {[%clk 0:03:00]}  Nf6 {[%clk 0:02:58]} 2. c4 {[%clk 0:03:01]}  e6 {[%clk 0:02:57]} 3. Nf3 {[%clk 0:03:01]}  Bb4+ {[%clk 0:02:57]} 4. Nbd2 {[%clk 0:02:57]}  b6 {[%clk 0:02:57]} 5. g3 {[%clk 0:02:48]}  Bb7 {[%clk 0:02:57]} 6. Bg2 {[%clk 0:02:48]}  O-O {[%clk 0:02:57]} 7. O-O {[%clk 0:02:49]}  Be7 {[%clk 0:02:57]} 8. Qc2 {[%clk 0:02:31]}  d5 {[%clk 0:02:56]} 9. Ne5 {[%clk 0:02:30]}  Nbd7 {[%clk 0:02:54]} 10. Rd1 {[%clk 0:02:12]}  c5 {[%clk 0:02:38]} 11. Nxd7 {[%clk 0:02:01]}  Qxd7 {[%clk 0:02:34]} 12. dxc5 {[%clk 0:02:01]}  Bxc5 {[%clk 0:02:31]} 13. Ne4 {[%clk 0:01:52]}  Nxe4 {[%clk 0:02:27]} 14. Bxe4 {[%clk 0:01:52]}  f5 {[%clk 0:02:20]} 15. Bf3 {[%clk 0:01:46]}  Rac8 {[%clk 0:02:19]} 16. Bf4 {[%clk 0:01:33]}  Qe7 {[%clk 0:02:11]} 17. Qa4 {[%clk 0:00:59]}  e5 {[%clk 0:02:04]} 18. cxd5 {[%clk 0:00:38]}  exf4 {[%clk 0:01:56]} 19. d6 {[%clk 0:00:38]}  Bxf2+ {[%clk 0:01:46]} 20. Kf1 {[%clk 0:00:25]}  Qe3 {[%clk 0:01:18]} 21. Bxb7 {[%clk 0:00:22]}  Rce8 {[%clk 0:00:53]} 22. Qb3+ {[%clk 0:00:20]}  Qxb3 {[%clk 0:00:53]} 23. axb3 {[%clk 0:00:21]}  fxg3 {[%clk 0:00:51]} 24. d7 {[%clk 0:00:19]}  Rd8 {[%clk 0:00:47]} 25. hxg3 {[%clk 0:00:16]}  Bxg3 {[%clk 0:00:47]} 26. Rxa7 {[%clk 0:00:17]}  Kf7 {[%clk 0:00:43]} 27. Bc8 {[%clk 0:00:16]}  h5 {[%clk 0:00:36]} 28. Rb7 {[%clk 0:00:16]}  h4 {[%clk 0:00:34]} 29. Kg2 {[%clk 0:00:16]}  Be5 {[%clk 0:00:33]} 30. Rxb6 {[%clk 0:00:14]}  g5 {[%clk 0:00:32]} 31. Rb5 {[%clk 0:00:12]}  Bf6 {[%clk 0:00:22]} 32. Rxf5 {[%clk 0:00:10]}  Kg6 {[%clk 0:00:19]} 33. Rdf1 {[%clk 0:00:10]}  g4 {[%clk 0:00:18]} 34. e4 {[%clk 0:00:10]}  h3+ {[%clk 0:00:17]} 35. Kg3 {[%clk 0:00:09]}  Be7 {[%clk 0:00:14]} 36. Rxf8 {[%clk 0:00:06]}  Bxf8 {[%clk 0:00:14]} 37. Kxg4 {[%clk 0:00:05]}  h2 {[%clk 0:00:14]} 38. Rh1 {[%clk 0:00:05]}  Bd6 {[%clk 0:00:15]} 39. Kf3 {[%clk 0:00:05]}  Kf6 {[%clk 0:00:14]} 40. Kg2 {[%clk 0:00:04]}  Ke6 {[%clk 0:00:14]} 41. Rd1 {[%clk 0:00:04]}  Be5 {[%clk 0:00:13]} 42. Rd5 {[%clk 0:00:03]}  Bxb2 {[%clk 0:00:13]} 43. Kxh2 {[%clk 0:00:03]}  Be5+ {[%clk 0:00:13]} 44. Kg2 {[%clk 0:00:03]}  Rf8 {[%clk 0:00:13]} 45. b4 {[%clk 0:00:02]}  Rd8 {[%clk 0:00:13]} 46. b5 {[%clk 0:00:02]}  Bb8 {[%clk 0:00:14]} 47. b6 {[%clk 0:00:03]}  Ke7 {[%clk 0:00:14]} 48. b7 {[%clk 0:00:03]}  Ke6 {[%clk 0:00:14]} 49. Kf3 {[%clk 0:00:03]}  Ke7 {[%clk 0:00:14]} 50. Ke2 {[%clk 0:00:04]}  Ke6 {[%clk 0:00:15]} 51. Kd3 {[%clk 0:00:04]}  Ke7 {[%clk 0:00:15]} 52. Kc4 {[%clk 0:00:05]}  Ke6 {[%clk 0:00:16]} 53. Kc5 {[%clk 0:00:05]}  Ke7 {[%clk 0:00:15]} 54. Kc6 {[%clk 0:00:06]}  Ke6 {[%clk 0:00:15]} 55. Ra5 {[%clk 0:00:05]}  Ke7 {[%clk 0:00:14]} 56. Rh5 {[%clk 0:00:05]}  Bf4 {[%clk 0:00:13]} 57. Rh7+ {[%clk 0:00:05]}  Ke6 {[%clk 0:00:14]} 58. Rh4 {[%clk 0:00:05]}  Be5 {[%clk 0:00:14]} 59. Rh5 {[%clk 0:00:05]}  Ke7 {[%clk 0:00:13]} 60. Rxe5+ {[%clk 0:00:04]} 1-0


[Site "https://www.chess.com"]

[Event "Titled Tuesday Blitz February 21 Early 2023"]
[White "Orujov, Elshad"]
[Black "Goltseva, Ekaterina"]
[WhiteFideId "13403540"]
[BlackFideId "24173770"]
[WhiteElo "2304"]
[BlackElo "2283"]
[Result "1/2-1/2"]
[Round "06"]
[TimeControl "180+2"]
[Date "2023.02.21"]
[WhiteClock "0:00:16"]
[BlackClock "0:00:07"]

1. e4 {[%clk 0:03:00]}  e6 {[%clk 0:03:00]} 2. d4 {[%clk 0:03:00]}  d5 {[%clk 0:03:01]} 3. Nd2 {[%clk 0:03:00]}  c5 {[%clk 0:03:01]} 4. exd5 {[%clk 0:03:00]}  Qxd5 {[%clk 0:03:01]} 5. Ngf3 {[%clk 0:03:00]}  cxd4 {[%clk 0:03:00]} 6. g3 {[%clk 0:03:00]}  Nc6 {[%clk 0:02:59]} 7. Bg2 {[%clk 0:03:00]}  Nf6 {[%clk 0:02:59]} 8. O-O {[%clk 0:02:59]}  Be7 {[%clk 0:02:57]} 9. Nb3 {[%clk 0:03:00]}  d3 {[%clk 0:02:37]} 10. Nfd4 {[%clk 0:02:53]}  Qd6 {[%clk 0:02:23]} 11. Nxc6 {[%clk 0:02:49]}  bxc6 {[%clk 0:02:24]} 12. cxd3 {[%clk 0:02:45]}  O-O {[%clk 0:02:21]} 13. Be3 {[%clk 0:02:46]}  Rd8 {[%clk 0:02:09]} 14. Bc5 {[%clk 0:02:44]}  Qc7 {[%clk 0:02:06]} 15. Bxe7 {[%clk 0:02:36]}  Qxe7 {[%clk 0:02:07]} 16. Bxc6 {[%clk 0:02:36]}  Rb8 {[%clk 0:02:07]} 17. Bf3 {[%clk 0:02:29]}  Ba6 {[%clk 0:02:07]} 18. Be2 {[%clk 0:02:19]}  e5 {[%clk 0:01:58]} 19. Re1 {[%clk 0:02:04]}  e4 {[%clk 0:01:50]} 20. Qc1 {[%clk 0:01:37]}  Bxd3 {[%clk 0:01:37]} 21. Bxd3 {[%clk 0:01:34]}  Rxd3 {[%clk 0:01:38]} 22. Nc5 {[%clk 0:01:31]}  Rd5 {[%clk 0:01:27]} 23. Qf4 {[%clk 0:01:23]}  Rxb2 {[%clk 0:01:18]} 24. Nxe4 {[%clk 0:01:20]}  Nxe4 {[%clk 0:00:55]} 25. Rxe4 {[%clk 0:01:21]}  Qd7 {[%clk 0:00:54]} 26. Rae1 {[%clk 0:01:10]}  h6 {[%clk 0:00:53]} 27. Re8+ {[%clk 0:00:42]}  Kh7 {[%clk 0:00:52]} 28. R8e7 {[%clk 0:00:37]}  Qf5 {[%clk 0:00:42]} 29. Rxf7 {[%clk 0:00:31]}  Qxf4 {[%clk 0:00:39]} 30. gxf4 {[%clk 0:00:32]}  Rdd2 {[%clk 0:00:24]} 31. Ree7 {[%clk 0:00:29]}  Rxf2 {[%clk 0:00:23]} 32. Rxg7+ {[%clk 0:00:29]}  Kh8 {[%clk 0:00:23]} 33. Rxa7 {[%clk 0:00:16]}  Rfd2 {[%clk 0:00:17]} 34. Kh1 {[%clk 0:00:11]}  Rxh2+ {[%clk 0:00:11]} 35. Kg1 {[%clk 0:00:11]}  Rhd2 {[%clk 0:00:10]} 36. Kh1 {[%clk 0:00:09]}  Rxa2 {[%clk 0:00:03]} 37. Rh7+ {[%clk 0:00:05]}  Kg8 {[%clk 0:00:03]} 38. Rxa2 {[%clk 0:00:06]}  Rxa2 {[%clk 0:00:03]} 39. Rxh6 {[%clk 0:00:06]}  Rf2 {[%clk 0:00:03]} 40. Rh4 {[%clk 0:00:05]}  Kg7 {[%clk 0:00:03]} 41. Kg1 {[%clk 0:00:06]}  Rc2 {[%clk 0:00:03]} 42. Rh2 {[%clk 0:00:04]}  Rxh2 {[%clk 0:00:02]} 43. Kxh2 {[%clk 0:00:05]}  Kg6 {[%clk 0:00:02]} 44. Kg3 {[%clk 0:00:06]}  Kf5 {[%clk 0:00:03]} 45. Kf3 {[%clk 0:00:07]}  Kf6 {[%clk 0:00:03]} 46. Kg4 {[%clk 0:00:08]}  Kg6 {[%clk 0:00:03]} 47. f5+ {[%clk 0:00:09]}  Kf6 {[%clk 0:00:04]} 48. Kf4 {[%clk 0:00:10]}  Kf7 {[%clk 0:00:05]} 49. Kg5 {[%clk 0:00:10]}  Kg7 {[%clk 0:00:05]} 50. f6+ {[%clk 0:00:11]}  Kf7 {[%clk 0:00:06]} 51. Kf5 {[%clk 0:00:12]}  Kf8 {[%clk 0:00:05]} 52. Kg6 {[%clk 0:00:12]}  Kg8 {[%clk 0:00:06]} 53. Kf5 {[%clk 0:00:13]}  Kf7 {[%clk 0:00:06]} 54. Ke5 {[%clk 0:00:13]}  Kf8 {[%clk 0:00:06]} 55. Ke6 {[%clk 0:00:14]}  Ke8 {[%clk 0:00:07]} 56. f7+ {[%clk 0:00:15]}  Kf8 {[%clk 0:00:07]} 57. Kf6 {[%clk 0:00:16]} 1/2-1/2


[Site "https://www.chess.com"]

[Event "Titled Tuesday Blitz February 21 Early 2023"]
[White "Bon, Michael"]
[Black "Thiel, Thomas"]
[WhiteFideId "620696"]
[BlackFideId "4615964"]
[WhiteElo "2394"]
[BlackElo "2234"]
[Result "1-0"]
[Round "06"]
[TimeControl "180+2"]
[Date "2023.02.21"]
[WhiteClock "0:00:17"]
[BlackClock "0:00:16"]

1. e4 {[%clk 0:03:00]}  d5 {[%clk 0:02:59]} 2. exd5 {[%clk 0:03:00]}  Nf6 {[%clk 0:02:58]} 3. d4 {[%clk 0:03:00]}  Nxd5 {[%clk 0:02:58]} 4. c4 {[%clk 0:02:59]}  Nb6 {[%clk 0:02:57]} 5. Nf3 {[%clk 0:02:59]}  g6 {[%clk 0:02:56]} 6. Nc3 {[%clk 0:02:49]}  Bg7 {[%clk 0:02:56]} 7. h3 {[%clk 0:02:49]}  O-O {[%clk 0:02:53]} 8. Be3 {[%clk 0:02:43]}  Nc6 {[%clk 0:02:53]} 9. Be2 {[%clk 0:02:37]}  e5 {[%clk 0:02:51]} 10. d5 {[%clk 0:02:25]}  Ne7 {[%clk 0:02:51]} 11. a4 {[%clk 0:02:19]}  Nf5 {[%clk 0:02:48]} 12. Bc5 {[%clk 0:02:10]}  Re8 {[%clk 0:02:46]} 13. O-O {[%clk 0:01:50]}  Nd7 {[%clk 0:02:43]} 14. Be3 {[%clk 0:01:35]}  Nxe3 {[%clk 0:02:26]} 15. fxe3 {[%clk 0:01:36]}  f5 {[%clk 0:02:17]} 16. a5 {[%clk 0:01:34]}  e4 {[%clk 0:02:17]} 17. Nd4 {[%clk 0:01:34]}  Qg5 {[%clk 0:02:07]} 18. Qd2 {[%clk 0:01:22]}  Nc5 {[%clk 0:01:55]} 19. Ra3 {[%clk 0:01:08]}  Bf8 {[%clk 0:01:25]} 20. Ndb5 {[%clk 0:00:59]}  Na6 {[%clk 0:01:16]} 21. Raa1 {[%clk 0:00:44]}  Bc5 {[%clk 0:01:14]} 22. Nd4 {[%clk 0:00:41]}  Bd7 {[%clk 0:01:11]} 23. Kh1 {[%clk 0:00:32]}  Rad8 {[%clk 0:01:08]} 24. Na4 {[%clk 0:00:30]}  Bxa4 {[%clk 0:01:06]} 25. Rxa4 {[%clk 0:00:29]}  Bf8 {[%clk 0:00:38]} 26. b4 {[%clk 0:00:20]}  Qg3 {[%clk 0:00:16]} 27. c5 {[%clk 0:00:17]} 1-0


[Site "https://www.chess.com"]

[Event "Titled Tuesday Blitz February 21 Early 2023"]
[White "Zaksaite, Salomeja"]
[Black "QuiesPrecatio"]
[WhiteFideId "12801496"]
[WhiteElo "2283"]
[BlackElo "2417"]
[Result "1-0"]
[Round "06"]
[TimeControl "180+2"]
[Date "2023.02.21"]
[WhiteClock "0:00:12"]
[BlackClock "0:00:43"]

1. d4 {[%clk 0:02:57]}  Nf6 {[%clk 0:02:59]} 2. Nc3 {[%clk 0:02:56]}  d5 {[%clk 0:02:59]} 3. Bf4 {[%clk 0:02:54]}  a6 {[%clk 0:02:49]} 4. e3 {[%clk 0:02:49]}  c5 {[%clk 0:02:47]} 5. dxc5 {[%clk 0:02:49]}  Nc6 {[%clk 0:02:46]} 6. Nf3 {[%clk 0:02:45]}  Bg4 {[%clk 0:02:46]} 7. Be2 {[%clk 0:02:39]}  e6 {[%clk 0:02:45]} 8. a3 {[%clk 0:02:26]}  Bxc5 {[%clk 0:02:31]} 9. O-O {[%clk 0:02:25]}  O-O {[%clk 0:02:30]} 10. Ne5 {[%clk 0:02:17]}  Bxe2 {[%clk 0:02:26]} 11. Qxe2 {[%clk 0:02:16]}  Rc8 {[%clk 0:02:24]} 12. Nxc6 {[%clk 0:02:11]}  Rxc6 {[%clk 0:02:25]} 13. e4 {[%clk 0:02:09]}  dxe4 {[%clk 0:02:03]} 14. Nxe4 {[%clk 0:02:09]}  Nxe4 {[%clk 0:02:02]} 15. Qxe4 {[%clk 0:02:08]}  Qd4 {[%clk 0:02:00]} 16. Qxd4 {[%clk 0:02:04]}  Bxd4 {[%clk 0:02:01]} 17. c3 {[%clk 0:02:04]}  Bf6 {[%clk 0:01:53]} 18. Rad1 {[%clk 0:02:04]}  b5 {[%clk 0:01:44]} 19. Rd7 {[%clk 0:02:01]}  a5 {[%clk 0:01:44]} 20. Rb7 {[%clk 0:01:59]}  b4 {[%clk 0:01:39]} 21. axb4 {[%clk 0:01:59]}  axb4 {[%clk 0:01:38]} 22. Rxb4 {[%clk 0:01:59]}  Rfc8 {[%clk 0:01:36]} 23. h3 {[%clk 0:01:57]}  g5 {[%clk 0:01:34]} 24. Be3 {[%clk 0:01:54]}  Rc4 {[%clk 0:01:26]} 25. Rxc4 {[%clk 0:01:47]}  Rxc4 {[%clk 0:01:27]} 26. Ra1 {[%clk 0:01:45]}  h6 {[%clk 0:01:22]} 27. Kf1 {[%clk 0:01:44]}  Rc7 {[%clk 0:01:20]} 28. Ra7 {[%clk 0:01:41]}  Rc8 {[%clk 0:01:18]} 29. Rb7 {[%clk 0:01:34]}  Kg7 {[%clk 0:01:10]} 30. Ke2 {[%clk 0:01:34]}  Kg6 {[%clk 0:01:10]} 31. Kd3 {[%clk 0:01:34]}  Be5 {[%clk 0:01:10]} 32. Bd2 {[%clk 0:00:48]}  Rd8+ {[%clk 0:01:07]} 33. Kc2 {[%clk 0:00:47]}  f5 {[%clk 0:01:03]} 34. c4 {[%clk 0:00:43]}  Bd4 {[%clk 0:01:01]} 35. f3 {[%clk 0:00:40]}  e5 {[%clk 0:00:57]} 36. b4 {[%clk 0:00:36]}  e4 {[%clk 0:00:57]} 37. fxe4 {[%clk 0:00:35]}  fxe4 {[%clk 0:00:57]} 38. Re7 {[%clk 0:00:28]}  Kf5 {[%clk 0:00:47]} 39. g4+ {[%clk 0:00:27]}  Kf6 {[%clk 0:00:47]} 40. Rxe4 {[%clk 0:00:27]}  Be5 {[%clk 0:00:48]} 41. c5 {[%clk 0:00:16]}  Rd4 {[%clk 0:00:43]} 42. Rxe5 {[%clk 0:00:12]} 1-0


[Site "https://www.chess.com"]

[Event "Titled Tuesday Blitz February 21 Early 2023"]
[White "UNSTOPPABLE_LEGEND"]
[Black "Rose, Felix"]
[BlackFideId "5105722"]
[WhiteElo "2437"]
[BlackElo "2091"]
[Result "1-0"]
[Round "06"]
[TimeControl "180+2"]
[Date "2023.02.21"]
[WhiteClock "0:00:08"]
[BlackClock "0:00:02"]

1. c4 {[%clk 0:03:00]}  e6 {[%clk 0:02:59]} 2. Nc3 {[%clk 0:03:00]}  d5 {[%clk 0:03:00]} 3. d4 {[%clk 0:03:00]}  Nf6 {[%clk 0:03:00]} 4. cxd5 {[%clk 0:02:58]}  exd5 {[%clk 0:03:01]} 5. Bg5 {[%clk 0:02:58]}  c6 {[%clk 0:03:02]} 6. e3 {[%clk 0:02:58]}  Be7 {[%clk 0:03:02]} 7. Bd3 {[%clk 0:02:58]}  Nbd7 {[%clk 0:03:03]} 8. Nf3 {[%clk 0:02:56]}  h6 {[%clk 0:03:03]} 9. Bf4 {[%clk 0:02:53]}  Nh5 {[%clk 0:03:03]} 10. O-O {[%clk 0:02:48]}  O-O {[%clk 0:02:59]} 11. Qc2 {[%clk 0:02:42]}  Ndf6 {[%clk 0:02:38]} 12. Be5 {[%clk 0:02:40]}  Ng4 {[%clk 0:02:26]} 13. Rae1 {[%clk 0:02:37]}  Nxe5 {[%clk 0:02:20]} 14. Nxe5 {[%clk 0:02:38]}  Nf6 {[%clk 0:02:16]} 15. f4 {[%clk 0:02:34]}  Bd6 {[%clk 0:02:12]} 16. Kh1 {[%clk 0:02:33]}  Re8 {[%clk 0:02:09]} 17. Rg1 {[%clk 0:02:31]}  Ng4 {[%clk 0:02:06]} 18. h3 {[%clk 0:02:10]}  Qh4 {[%clk 0:01:59]} 19. Ref1 {[%clk 0:02:05]}  Nxe3 {[%clk 0:01:54]} 20. Bh7+ {[%clk 0:01:55]}  Kf8 {[%clk 0:01:53]} 21. Qe2 {[%clk 0:01:31]}  Nxf1 {[%clk 0:01:30]} 22. Rxf1 {[%clk 0:01:32]}  Qf6 {[%clk 0:00:46]} 23. Qh5 {[%clk 0:01:18]}  Bxe5 {[%clk 0:00:38]} 24. dxe5 {[%clk 0:01:17]}  g6 {[%clk 0:00:28]} 25. Qxh6+ {[%clk 0:01:06]}  Qg7 {[%clk 0:00:29]} 26. Qh4 {[%clk 0:01:06]}  Bf5 {[%clk 0:00:28]} 27. Kh2 {[%clk 0:00:30]}  Rad8 {[%clk 0:00:26]} 28. g4 {[%clk 0:00:20]}  Bc8 {[%clk 0:00:22]} 29. Ne2 {[%clk 0:00:15]}  d4 {[%clk 0:00:21]} 30. Ng3 {[%clk 0:00:15]}  d3 {[%clk 0:00:19]} 31. Ne4 {[%clk 0:00:14]}  d2 {[%clk 0:00:15]} 32. Rd1 {[%clk 0:00:13]}  Rd3 {[%clk 0:00:08]} 33. Nf6 {[%clk 0:00:13]}  Red8 {[%clk 0:00:08]} 34. Qf2 {[%clk 0:00:11]}  g5 {[%clk 0:00:08]} 35. Qc5+ {[%clk 0:00:11]}  R3d6 {[%clk 0:00:05]} 36. Rxd2 {[%clk 0:00:11]}  b6 {[%clk 0:00:02]} 37. Rxd6 {[%clk 0:00:07]}  bxc5 {[%clk 0:00:02]} 38. Rxd8+ {[%clk 0:00:07]}  Ke7 {[%clk 0:00:02]} 39. Re8# {[%clk 0:00:08]} 1-0


[Site "https://www.chess.com"]

[Event "Titled Tuesday Blitz February 21 Early 2023"]
[White "Andrews, Todd"]
[Black "lisjakzlatko1"]
[WhiteFideId "2012456"]
[WhiteElo "2220"]
[BlackElo "2162"]
[Result "1-0"]
[Round "06"]
[TimeControl "180+2"]
[Date "2023.02.21"]
[WhiteClock "0:00:53"]
[BlackClock "0:00:09"]

1. e4 {[%clk 0:03:00]}  d6 {[%clk 0:02:57]} 2. d4 {[%clk 0:03:00]}  Nf6 {[%clk 0:02:58]} 3. Nc3 {[%clk 0:03:00]}  c6 {[%clk 0:02:58]} 4. f4 {[%clk 0:02:59]}  Qa5 {[%clk 0:02:57]} 5. Bd3 {[%clk 0:02:53]}  e5 {[%clk 0:02:54]} 6. Nf3 {[%clk 0:02:49]}  Bg4 {[%clk 0:02:50]} 7. dxe5 {[%clk 0:02:45]}  dxe5 {[%clk 0:02:48]} 8. O-O {[%clk 0:02:42]}  Nbd7 {[%clk 0:02:40]} 9. Kh1 {[%clk 0:02:42]}  Be7 {[%clk 0:02:36]} 10. f5 {[%clk 0:02:37]}  O-O {[%clk 0:02:26]} 11. a3 {[%clk 0:02:28]}  b5 {[%clk 0:02:24]} 12. Qe1 {[%clk 0:02:25]}  Bxf3 {[%clk 0:02:20]} 13. Rxf3 {[%clk 0:02:24]}  Rfe8 {[%clk 0:01:47]} 14. Bd2 {[%clk 0:02:24]}  Qc7 {[%clk 0:01:44]} 15. Rh3 {[%clk 0:02:20]}  a6 {[%clk 0:01:37]} 16. Qg3 {[%clk 0:02:11]}  c5 {[%clk 0:01:25]} 17. Bh6 {[%clk 0:02:01]}  Bf8 {[%clk 0:01:18]} 18. Qg5 {[%clk 0:01:37]}  Kh8 {[%clk 0:00:48]} 19. Bxg7+ {[%clk 0:01:26]}  Bxg7 {[%clk 0:00:47]} 20. Nd5 {[%clk 0:01:23]}  Qd6 {[%clk 0:00:28]} 21. Rd1 {[%clk 0:01:05]}  c4 {[%clk 0:00:26]} 22. Be2 {[%clk 0:00:58]}  Nxe4 {[%clk 0:00:19]} 23. Qh4 {[%clk 0:00:58]}  Ndf6 {[%clk 0:00:13]} 24. Nxf6 {[%clk 0:00:53]}  Qxf6 {[%clk 0:00:09]} 25. Qxh7# {[%clk 0:00:53]} 1-0


[Site "https://www.chess.com"]

[Event "Titled Tuesday Blitz February 21 Early 2023"]
[White "Petrova, Irina"]
[Black "Fries-Nielsen, Jens Ove"]
[WhiteFideId "14124122"]
[BlackFideId "1400142"]
[WhiteElo "2108"]
[BlackElo "2377"]
[Result "1-0"]
[Round "06"]
[TimeControl "180+2"]
[Date "2023.02.21"]
[WhiteClock "0:00:12"]
[BlackClock "0:02:10"]

1. e4 {[%clk 0:03:00]}  e5 {[%clk 0:02:58]} 2. Nf3 {[%clk 0:03:00]}  Nc6 {[%clk 0:02:58]} 3. Bc4 {[%clk 0:03:00]}  d6 {[%clk 0:02:57]} 4. d3 {[%clk 0:02:57]}  Bg4 {[%clk 0:02:57]} 5. c3 {[%clk 0:02:52]}  Nf6 {[%clk 0:02:56]} 6. Nbd2 {[%clk 0:02:52]}  Be7 {[%clk 0:02:55]} 7. h3 {[%clk 0:02:51]}  Be6 {[%clk 0:02:54]} 8. O-O {[%clk 0:02:43]}  O-O {[%clk 0:02:53]} 9. Re1 {[%clk 0:02:34]}  Bxc4 {[%clk 0:02:51]} 10. Nxc4 {[%clk 0:02:35]}  Nd7 {[%clk 0:02:49]} 11. Ne3 {[%clk 0:02:34]}  g6 {[%clk 0:02:49]} 12. d4 {[%clk 0:02:20]}  Bf6 {[%clk 0:02:49]} 13. d5 {[%clk 0:02:18]}  Ne7 {[%clk 0:02:49]} 14. Ng4 {[%clk 0:02:08]}  Bg7 {[%clk 0:02:48]} 15. c4 {[%clk 0:02:05]}  f5 {[%clk 0:02:48]} 16. exf5 {[%clk 0:02:02]}  gxf5 {[%clk 0:02:45]} 17. Nh6+ {[%clk 0:01:56]}  Bxh6 {[%clk 0:02:45]} 18. Bxh6 {[%clk 0:01:55]}  Rf6 {[%clk 0:02:46]} 19. Bg5 {[%clk 0:01:44]}  Rg6 {[%clk 0:02:46]} 20. Qd2 {[%clk 0:01:34]}  Qf8 {[%clk 0:02:45]} 21. b4 {[%clk 0:01:22]}  h6 {[%clk 0:02:41]} 22. Bxe7 {[%clk 0:01:19]}  Qxe7 {[%clk 0:02:41]} 23. c5 {[%clk 0:01:18]}  Kh7 {[%clk 0:02:41]} 24. cxd6 {[%clk 0:01:03]}  cxd6 {[%clk 0:02:41]} 25. Rac1 {[%clk 0:00:59]}  Rag8 {[%clk 0:02:41]} 26. g3 {[%clk 0:00:59]}  f4 {[%clk 0:02:39]} 27. g4 {[%clk 0:00:54]}  Rxg4+ {[%clk 0:02:36]} 28. hxg4 {[%clk 0:00:53]}  Rxg4+ {[%clk 0:02:36]} 29. Kf1 {[%clk 0:00:53]}  Nf6 {[%clk 0:02:36]} 30. Qc2+ {[%clk 0:00:51]}  Rg6 {[%clk 0:02:29]} 31. Qc7 {[%clk 0:00:50]}  Nd7 {[%clk 0:02:29]} 32. Ke2 {[%clk 0:00:26]}  e4 {[%clk 0:02:28]} 33. Nd4 {[%clk 0:00:26]}  f3+ {[%clk 0:02:28]} 34. Kd2 {[%clk 0:00:24]}  Rg5 {[%clk 0:02:24]} 35. Nxf3 {[%clk 0:00:16]}  Rxd5+ {[%clk 0:02:24]} 36. Kc2 {[%clk 0:00:17]}  Qf7 {[%clk 0:02:18]} 37. Nd2 {[%clk 0:00:15]}  Rd4 {[%clk 0:02:12]} 38. Nb3 {[%clk 0:00:12]}  Qxf2+ {[%clk 0:02:10]} 39. Kb1 {[%clk 0:00:12]} 1-0


[Site "https://www.chess.com"]